[Event "FIDE World Rapid-ch Open 2018"]
[White "Lomasov, Semyon"]
[Black "Tsydypov, Zhamsaran"]
[Site "St. Petersburg"]
[Round "12.58"]
[Annotator "ChessBase"]
[Result "1-0"]
[Date "2018.12.28"]
[WhiteElo "2553"]
[BlackElo "2529"]
[PlyCount "97"]
[TimeControl "900+10"]

1. e4 {[%emt 0:0:0]} c5 {[%emt 0:0:5]} 2. Nf3 {[%emt 0:0:2]} d6 {[%emt 0:0:0]} 3. d4 {[%emt 0:0:5]} cxd4 {[%emt 0:0:1]} 4. Nxd4 {[%emt 0:0:2]} Nf6 {[%emt 0:0:2]} 5. Nc3 {[%emt 0:0:1]} a6 {[%emt 0:0:2]} 6. Bg5 {[%emt 0:0:2]
} e6 {[%emt 0:0:3]} 7. f4 {[%emt 0:0:4]} h6 {[%emt 0:0:2]} 8. Bh4 {[%emt 0:0:4]} Qb6 {[%emt 0:0:2]} 9. a3 {[%emt 0:0:8]} Nbd7 {[%emt 0:0:12]
} 10. Bf2 {[%emt 0:0:6]} Qc7 {[%emt 0:0:2]} 11. Qf3 {[%emt 0:0:0]} b5 {[%emt 0:0:4]} 12. 0-0-0 {[%emt 0:0:4]} Bb7 {[%emt 0:0:5]} 13. g4 {[%emt 0:0:8]} Be7 {[%emt 0:0:42]} 14. h4 {[%emt 0:0:11]} Nc5 {[%emt 0:0:0]} 15. Bd3 {[%emt 0:0:14]} h5 {[%emt 0:1:17]} 16. gxh5 {[%emt 0:0:9]} Nxh5 {[%emt 0:0:23]} 17. Kb1 {[%emt 0:0:45]} g6 {[%emt 0:1:8]} 18. Rhe1 {[%emt 0:0:50]
} Nf6 {[%emt 0:0:41]} 19. Qh3 {[%emt 0:0:25]} Rc8 {[%emt 0:0:0]} 20. Nb3 {[%emt 0:3:47]} Nxd3 {[%emt 0:2:36]} 21. cxd3 {[%emt 0:0:12]} Nh5 {[%emt 0:0:13]} 22. f5 {[%emt 0:0:46]} e5 {[%emt 0:0:34]} 23. d4 {[%emt 0:1:38]
} Nf4 {[%emt 0:0:28]} 24. Qg4 {[%emt 0:0:9]} a5 {[%emt 0:0:0]} 25. dxe5 {[%emt 0:0:54]} dxe5 {[%emt 0:0:4]} 26. fxg6 {[%emt 0:0:2]} Nxg6 {[%emt 0:2:27]} 27. Rc1 {[%emt 0:4:26]} Qd7 {[%emt 0:0:16]} 28. Qxd7+ {[%emt 0:0:10]
} Kxd7 {[%emt 0:0:1]} 29. Nxa5 {[%emt 0:0:5]} Ba8 {[%emt 0:0:0]} 30. Rcd1+ {[%emt 0:0:10]} Ke6 {[%emt 0:0:7]} 31. Nxb5 {[%emt 0:0:0]} Nxh4 {[%emt 0:0:32]} 32. Na7 {[%emt 0:2:1]} Rcd8 {[%emt 0:1:52]} 33. N7c6 {[%emt 0:0:30]} Nf3 {[%emt 0:0:25]} 34. Nxd8+ {[%emt 0:0:37]} Rxd8 {[%emt 0:0:56]
} 35. Bb6 {[%emt 0:1:8]} Rb8 {[%emt 0:0:8]} 36. Nc4 {[%emt 0:0:0]} Nxe1 {[%emt 0:0:5]} 37. Rxe1 {[%emt 0:0:1]} Bc6 {[%emt 0:0:12]} 38. Bc7 {[%emt 0:0:27]} Rc8 {[%emt 0:0:4]} 39. Bxe5 {[%emt 0:0:13]} Ba4 {[%emt 0:0:21]
} 40. Nb6 {[%emt 0:0:9]} Bc2+ {[%emt 0:0:1]} 41. Ka2 {[%emt 0:0:14]
} Rc6 {[%emt 0:0:1]} 42. Bd4 {[%emt 0:0:6]} Bh4 {[%emt 0:0:0]} 43. Rh1 {[%emt 0:0:17]} Bg5 {[%emt 0:0:2]} 44. Re1 {[%emt 0:0:10]} Rd6 {[%emt 0:0:14]} 45. Nd5 {[%emt 0:0:6]} Bh4 {[%emt 0:0:15]} 46. Re2 {[%emt 0:0:6]
} Bd3 {[%emt 0:0:2]} 47. Nf4+ {[%emt 0:0:3]} Kd7 {[%emt 0:0:0]} 48. Nxd3 {[%emt 0:0:2]} Rxd4 {[%emt 0:0:1]} 49. Ne5+ {[%emt 0:0:2]} 1-0

[Event "FIDE World Rapid-ch Open 2018"]
[White "Miton, Kamil"]
[Black "Nihal Sarin"]
[Site "St. Petersburg"]
[Round "12.60"]
[Annotator "ChessBase"]
[Result "1/2-1/2"]
[Date "2018.12.28"]
[WhiteElo "2588"]
[BlackElo "2576"]
[PlyCount "68"]
[TimeControl "900+10"]

1. d4 {[%emt 0:0:0]} Nf6 {[%emt 0:0:0]} 2. c4 {[%emt 0:0:0]} e6 {[%emt 0:0:0]} 3. g3 {[%emt 0:0:0]} d5 {[%emt 0:0:3]} 4. Bg2 {[%emt 0:0:2]} dxc4 {[%emt 0:0:9]} 5. Nf3 {[%emt 0:0:6]} c5 {[%emt 0:0:2]} 6. 0-0 {[%emt 0:0:0]} Nc6 {[%emt 0:0:2]} 7. dxc5 {[%emt 0:0:21]} Qxd1 {[%emt 0:0:4]} 8. Rxd1 {[%emt 0:0:3]} Bxc5 {[%emt 0:0:3]} 9. Nbd2 {[%emt 0:0:6]} c3 {[%emt 0:0:2]
} 10. bxc3 {[%emt 0:0:4]} 0-0 {[%emt 0:0:4]} 11. Nb3 {[%emt 0:0:24]
} Be7 {[%emt 0:0:4]} 12. c4 {[%emt 0:0:47]} Bd7 {[%emt 0:0:0]} 13. Bb2 {[%emt 0:0:5]} Rfd8 {[%emt 0:0:2]} 14. Ne5 {[%emt 0:0:39]} Rac8 {[%emt 0:1:53]} 15. c5 {[%emt 0:1:0]} Nxe5 {[%emt 0:6:9]} 16. Bxe5 Bc6 17. Bxc6 {[%emt 0:0:51]} Rxc6 {[%emt 0:2:15]} 18. Rxd8+ {[%emt 0:2:49]} Bxd8 {[%emt 0:0:1]} 19. Rd1 {[%emt 0:3:2]} Be7 {[%emt 0:0:32]} 20. Bxf6 {[%emt 0:3:25]
} gxf6 {[%emt 0:0:14]} 21. Rd7 {[%emt 0:0:12]} Bxc5 {[%emt 0:0:0]} 22. Rxb7 {[%emt 0:1:14]} Bb6 {[%emt 0:0:34]} 23. Rd7 {[%emt 0:0:9]} Rc4 {[%emt 0:0:37]} 24. e3 {[%emt 0:0:24]} Kg7 {[%emt 0:0:21]} 25. Kf1 {[%emt 0:0:12]
} Ra4 {[%emt 0:0:34]} 26. Rd2 {[%emt 0:0:2]} f5 {[%emt 0:0:0]} 27. Rc2 {[%emt 0:0:5]} h5 {[%emt 0:0:43]} 28. Nd2 {[%emt 0:0:21]} h4 {[%emt 0:0:15]
} 29. Nf3 {[%emt 0:0:35]} hxg3 {[%emt 0:0:6]} 30. hxg3 {[%emt 0:0:2]
} Kf6 {[%emt 0:0:42]} 31. Ke2 {[%emt 0:0:2]} Ba5 {[%emt 0:0:0]} 32. Nd4 {[%emt 0:0:11]} Bb6 {[%emt 0:0:6]} 33. Nf3 {[%emt 0:0:2]} Ba5 {[%emt 0:0:2]} 34. Nd4 {[%emt 0:0:3]} Bb6 {[%emt 0:0:1]} 1/2-1/2

[Event "FIDE World Rapid-ch Open 2018"]
[White "Vastrukhin, Oleg"]
[Black "Khismatullin, Denis"]
[Site "St. Petersburg"]
[Round "12.62"]
[Annotator "ChessBase"]
[Result "1-0"]
[Date "2018.12.28"]
[WhiteElo "2413"]
[BlackElo "2621"]
[PlyCount "85"]
[TimeControl "900+10"]

1. Nf3 {[%emt 0:0:0]} d5 {[%emt 0:0:4]} 2. g3 {[%emt 0:0:0]} g6 {[%emt 0:0:0]} 3. Bg2 {[%emt 0:0:3]} Bg7 {[%emt 0:0:1]} 4. d4 {[%emt 0:0:1]} e6 {[%emt 0:0:36]} 5. 0-0 {[%emt 0:0:17]} Ne7 {[%emt 0:0:2]} 6. Nbd2 {[%emt 0:0:0]} Nbc6 {[%emt 0:1:10]} 7. c3 {[%emt 0:0:15]} f5 {[%emt 0:0:17]} 8. Ne1 {[%emt 0:2:46]} e5 {[%emt 0:1:46]} 9. dxe5 {[%emt 0:0:2]} Nxe5 {[%emt 0:0:0]} 10. Nd3 {[%emt 0:0:6]} Nf7 {[%emt 0:1:43]} 11. c4 {[%emt 0:0:33]} 0-0 {[%emt 0:1:37]} 12. Qb3 {[%emt 0:1:2]} c6 {[%emt 0:0:25]} 13. Rd1 {[%emt 0:0:0]} Qb6 {[%emt 0:1:39]} 14. Qxb6 {[%emt 0:0:54]} axb6 {[%emt 0:0:1]} 15. cxd5 {[%emt 0:0:3]} Nxd5 {[%emt 0:0:5]} 16. Nc4 {[%emt 0:0:15]} Be6 {[%emt 0:1:9]
} 17. Bxd5 {[%emt 0:1:53]} Bxd5 {[%emt 0:0:33]} 18. Nxb6 {[%emt 0:0:40]
} Rxa2 {[%emt 0:0:2]} 19. Be3 {[%emt 0:0:24]} Bb3 {[%emt 0:0:0]} 20. Rxa2 {[%emt 0:0:21]} Bxd1 {[%emt 0:0:3]} 21. Kf1 {[%emt 0:0:30]} Ne5 {[%emt 0:0:52]} 22. Nc5 {[%emt 0:0:21]} Ng4 {[%emt 0:0:48]} 23. b3 {[%emt 0:2:35]
} Nxe3+ {[%emt 0:2:24]} 24. fxe3 {[%emt 0:0:1]} Rd8 {[%emt 0:0:0]} 25. Ra7 {[%emt 0:2:14]} Bc3 {[%emt 0:2:0]} 26. Rxb7 {[%emt 0:0:31]} Rd2 {[%emt 0:0:2]} 27. Nba4 {[%emt 0:0:8]} Be5 {[%emt 0:0:38]} 28. Ke1 {[%emt 0:0:7]
} Rd5 {[%emt 0:0:1]} 29. Nd3 {[%emt 0:0:35]} Bc2 {[%emt 0:0:0]} 30. Kd2 {[%emt 0:0:6]} Bxd3 {[%emt 0:0:10]} 31. exd3 {[%emt 0:0:1]} h5 {[%emt 0:0:8]} 32. d4 {[%emt 0:0:21]} h4 {[%emt 0:0:6]} 33. gxh4 {[%emt 0:0:24]
} f4 {[%emt 0:0:21]} 34. Ke2 {[%emt 0:0:15]} Bf6 {[%emt 0:0:0]} 35. Nc3 {[%emt 0:0:14]} Rd8 {[%emt 0:0:21]} 36. Ne4 {[%emt 0:0:11]} Bxh4 {[%emt 0:0:2]} 37. Rb6 {[%emt 0:0:11]} Re8 {[%emt 0:0:18]} 38. Kf3 {[%emt 0:0:9]
} fxe3 {[%emt 0:0:7]} 39. Kxe3 {[%emt 0:0:2]} Rc8 {[%emt 0:0:0]} 40. Nd6 {[%emt 0:0:19]} Rc7 {[%emt 0:0:15]} 41. Rb7 {[%emt 0:0:4]} Rxb7 {[%emt 0:0:12]} 42. Nxb7 {[%emt 0:0:1]} Bg5+ {[%emt 0:0:1]} 43. Ke4 {[%emt 0:0:3]
} 1-0

[Event "FIDE World Rapid-ch Open 2018"]
[White "Sokolin, Leonid"]
[Black "Salgado Lopez, Ivan"]
[Site "St. Petersburg"]
[Round "12.63"]
[Annotator "ChessBase"]
[Result "1-0"]
[Date "2018.12.28"]
[WhiteElo "2508"]
[BlackElo "2629"]
[PlyCount "79"]
[TimeControl "900+10"]

1. e4 {[%emt 0:0:0]} c5 {[%emt 0:0:0]} 2. Nf3 {[%emt 0:0:0]} Nc6 {[%emt 0:0:0]
} 3. Bb5 {[%emt 0:0:0]} g6 {[%emt 0:0:0]} 4. 0-0 {[%emt 0:0:0]} Bg7 {[%emt 0:0:0]} 5. Re1 {[%emt 0:0:4]} e5 {[%emt 0:0:10]} 6. Bxc6 {[%emt 0:0:17]
} dxc6 {[%emt 0:0:9]} 7. d3 {[%emt 0:0:1]} Qe7 {[%emt 0:0:0]} 8. Nbd2 {[%emt 0:0:31]} Nf6 {[%emt 0:0:5]} 9. a3 {[%emt 0:0:9]} Nh5 {[%emt 0:0:16]
} 10. Nc4 {[%emt 0:0:37]} Nf4 {[%emt 0:1:34]} 11. b4 {[%emt 0:0:0]} Bg4 {[%emt 0:4:6]} 12. Be3 {[%emt 0:2:4]} cxb4 {[%emt 0:1:55]} 13. axb4 {[%emt 0:0:1]} Qxb4 {[%emt 0:0:8]} 14. Rb1 {[%emt 0:0:51]} Qe7 {[%emt 0:3:35]
} 15. Rxb7 {[%emt 0:0:3]} Bd7 {[%emt 0:0:9]} 16. Qa1 {[%emt 0:4:31]
} 0-0 {[%emt 0:1:5]} 17. Ncxe5 {[%emt 0:0:34]} Nxg2 {[%emt 0:0:0]} 18. Rxd7 {[%emt 0:0:33]} Qxd7 {[%emt 0:0:5]} 19. Nxd7 {[%emt 0:0:0]} Bxa1 {[%emt 0:0:2]} 20. Rxa1 Rfd8 {[%emt 0:0:27]} 21. Nf6+ {[%emt 0:0:0]} Kg7 {[%emt 0:0:3]} 22. Kxg2 {[%emt 0:0:39]} a5 {[%emt 0:0:2]} 23. Bd4 {[%emt 0:0:15]} a4 {[%emt 0:0:10]} 24. Nd7+ {[%emt 0:0:12]} Kg8 {[%emt 0:0:0]} 25. Nb6 {[%emt 0:0:5]} Ra6 {[%emt 0:0:8]} 26. Rxa4 {[%emt 0:0:6]} Rxa4 27. Nxa4 Ra8 {[%emt 0:0:6]} 28. Nc3 {[%emt 0:0:7]} Ra1 {[%emt 0:0:5]
} 29. Be3 {[%emt 0:0:43]} Ra3 {[%emt 0:0:9]} 30. Bd2 {[%emt 0:0:4]} f6 {[%emt 0:0:10]
} 31. Nd4 {[%emt 0:0:2]} c5 {[%emt 0:0:5]} 32. Nb3 {[%emt 0:0:0]} c4 {[%emt 0:0:3]} 33. dxc4 {[%emt 0:0:2]} Kf7 {[%emt 0:0:2]} 34. Kf3 {[%emt 0:0:6]} h5 {[%emt 0:0:3]} 35. h4 {[%emt 0:0:1]} Ra8 {[%emt 0:0:0]} 36. c5 {[%emt 0:0:2]} Rd8 {[%emt 0:0:4]} 37. Bf4 {[%emt 0:0:4]} Ke6 {[%emt 0:0:5]} 38. c6 {[%emt 0:0:1]} Rc8 {[%emt 0:0:3]} 39. Nd4+ {[%emt 0:0:4]
} Kf7 {[%emt 0:0:4]} 40. Nd5 {[%emt 0:0:4]} 1-0

[Event "FIDE World Rapid-ch Open 2018"]
[White "Frolyanov, Dmitry"]
[Black "Baron, Tal"]
[Site "St. Petersburg"]
[Round "12.64"]
[Annotator "ChessBase"]
[Result "1-0"]
[Date "2018.12.28"]
[WhiteElo "2517"]
[BlackElo "2532"]
[PlyCount "68"]
[TimeControl "900+10"]

1. e4 {[%emt 0:0:0]} e6 {[%emt 0:0:39]} 2. d4 {[%emt 0:0:0]} d5 {[%emt 0:0:0]} 3. Nc3 {[%emt 0:0:0]} Bb4 {[%emt 0:0:2]} 4. e5 {[%emt 0:0:0]} c5 {[%emt 0:0:1]} 5. a3 {[%emt 0:0:2]} Bxc3+ {[%emt 0:0:1]} 6. bxc3 {[%emt 0:0:1]
} Ne7 {[%emt 0:0:2]} 7. Qg4 {[%emt 0:0:5]} cxd4 {[%emt 0:0:0]} 8. Qxg7 {[%emt 0:0:7]} Rg8 {[%emt 0:0:1]} 9. Qxh7 {[%emt 0:0:2]} Qc7 {[%emt 0:0:1]} 10. Ne2 {[%emt 0:1:38]} Nbc6 {[%emt 0:0:2]} 11. f4 {[%emt 0:0:15]
} dxc3 {[%emt 0:0:1]} 12. h4 {[%emt 0:0:14]} Bd7 {[%emt 0:0:0]} 13. h5 {[%emt 0:0:2]} d4 {[%emt 0:0:17]} 14. h6 {[%emt 0:0:23]} 0-0-0 {[%emt 0:0:3]} 15. Qd3 {[%emt 0:0:5]} Be8 {[%emt 0:0:8]} 16. h7 {[%emt 0:0:0]} Rh8 {[%emt 0:0:1]} 17. g4 {[%emt 0:0:35]} Nd5 {[%emt 0:7:50]} 18. Bg2 {[%emt 0:0:20]} Ncb4 {[%emt 0:2:0]} 19. axb4 {[%emt 0:1:5]} Nxb4 {[%emt 0:0:1]
} 20. Qd1 {[%emt 0:1:29]} d3 {[%emt 0:0:1]} 21. Rxa7 {[%emt 0:0:0]} Nxc2+ {[%emt 0:3:48]} 22. Kf1 {[%emt 0:0:2]} Bb5 {[%emt 0:2:18]} 23. Ra8+ {[%emt 0:0:36]} Kd7 {[%emt 0:0:1]} 24. Rxd8+ {[%emt 0:0:2]} Kxd8 {[%emt 0:0:1]} 25. Rh3 {[%emt 0:1:33]} Kc8 {[%emt 0:0:10]} 26. Rxd3 {[%emt 0:0:27]
} Bxd3 {[%emt 0:0:24]} 27. Qxd3 {[%emt 0:0:5]} Nb4 {[%emt 0:0:0]} 28. Qxc3 {[%emt 0:0:14]} Qxc3 {[%emt 0:0:4]} 29. Nxc3 {[%emt 0:0:0]} Rxh7 {[%emt 0:0:3]} 30. Ne4 {[%emt 0:0:25]} Kc7 {[%emt 0:0:18]} 31. Ng5 {[%emt 0:1:18]} Rg7 {[%emt 0:0:34]} 32. Ke2 {[%emt 0:0:19]} Nc6 {[%emt 0:0:2]
} 33. Ba3 {[%emt 0:0:56]} Nd8 {[%emt 0:0:3]} 34. Be7 {[%emt 0:0:0]} Nc6 {[%emt 0:1:9]} 1-0

[Event "FIDE World Rapid-ch Open 2018"]
[White "Shaposhnikov, Evgeny"]
[Black "Makarov, Marat"]
[Site "St. Petersburg"]
[Round "12.65"]
[Annotator "ChessBase"]
[Result "1-0"]
[Date "2018.12.28"]
[WhiteElo "2576"]
[BlackElo "2505"]
[PlyCount "79"]
[TimeControl "900+10"]

1. Nf3 {[%emt 0:0:0]} Nf6 {[%emt 0:0:0]} 2. c4 {[%emt 0:0:0]} c5 {[%emt 0:0:7]
} 3. Nc3 {[%emt 0:0:0]} b6 {[%emt 0:0:7]} 4. d4 {[%emt 0:0:0]} cxd4 {[%emt 0:0:2]} 5. Nxd4 {[%emt 0:0:2]} Bb7 {[%emt 0:0:0]} 6. Bg5 {[%emt 0:0:2]} a6 {[%emt 0:1:7]} 7. Bxf6 {[%emt 0:0:22]} gxf6 {[%emt 0:0:0]} 8. e4 {[%emt 0:0:30]} e6 {[%emt 0:0:7]} 9. Be2 {[%emt 0:1:19]} Bb4 {[%emt 0:0:35]
} 10. 0-0 {[%emt 0:0:27]} Bxc3 {[%emt 0:0:2]} 11. bxc3 {[%emt 0:0:1]
} 0-0 {[%emt 0:2:38]} 12. Qd3 {[%emt 0:0:44]} Kh8 {[%emt 0:0:0]} 13. Rab1 {[%emt 0:0:24]} d6 {[%emt 0:0:7]} 14. Rfd1 {[%emt 0:0:13]} Nd7 {[%emt 0:0:2]} 15. Nb3 {[%emt 0:0:36]} Ne5 {[%emt 0:1:20]} 16. Qd4 {[%emt 0:0:17]
} Rg8 {[%emt 0:1:33]} 17. Nd2 {[%emt 0:0:16]} b5 {[%emt 0:0:0]} 18. a4 {[%emt 0:0:1]} Ng6 {[%emt 0:2:32]} 19. Qe3 {[%emt 0:0:35]} f5 {[%emt 0:0:35]
} 20. cxb5 {[%emt 0:1:7]} axb5 {[%emt 0:0:8]} 21. axb5 {[%emt 0:0:25]
} f4 {[%emt 0:0:9]} 22. Qh3 {[%emt 0:0:17]} Ra2 {[%emt 0:0:0]} 23. Ra1 {[%emt 0:1:26]} Rxa1 {[%emt 0:2:6]} 24. Rxa1 {[%emt 0:0:1]} Ne5 {[%emt 0:0:4]} 25. Qh6 {[%emt 0:2:10]} f3 {[%emt 0:0:21]} 26. Nxf3 {[%emt 0:1:52]
} Bxe4 {[%emt 0:0:27]} 27. Qe3 {[%emt 0:0:18]} Bxf3 {[%emt 0:0:0]} 28. Bxf3 {[%emt 0:0:4]} Qf6 {[%emt 0:0:7]} 29. Be2 {[%emt 0:0:25]} d5 {[%emt 0:1:29]} 30. g3 {[%emt 0:0:29]} Nd7 {[%emt 0:0:15]} 31. Ra7 {[%emt 0:0:12]
} Rd8 {[%emt 0:0:26]} 32. b6 {[%emt 0:0:4]} Kg7 {[%emt 0:0:0]} 33. Rb7 {[%emt 0:2:15]} Ne5 {[%emt 0:0:2]} 34. Rc7 {[%emt 0:0:17]} Ra8 {[%emt 0:0:20]} 35. b7 {[%emt 0:0:24]} Ra1+ {[%emt 0:0:2]} 36. Kg2 {[%emt 0:0:1]
} Rb1 {[%emt 0:0:2]} 37. Ba6 {[%emt 0:0:51]} Rb2 {[%emt 0:0:0]} 38. Qf4 {[%emt 0:0:34]} Qxf4 {[%emt 0:0:30]} 39. gxf4 {[%emt 0:0:1]} Ng4 {[%emt 0:0:9]} 40. Rc8 {[%emt 0:0:14]} 1-0

[Event "FIDE World Rapid-ch Open 2018"]
[White "Gutenev, Alexander"]
[Black "Roiz, Michael"]
[Site "St. Petersburg"]
[Round "12.66"]
[Annotator "ChessBase"]
[Result "1/2-1/2"]
[Date "2018.12.28"]
[WhiteElo "2456"]
[BlackElo "2605"]
[PlyCount "70"]
[TimeControl "900+10"]

1. e4 {[%emt 0:0:0]} e5 {[%emt 0:0:0]} 2. Nf3 {[%emt 0:0:0]} Nc6 {[%emt 0:0:0]
} 3. Bb5 {[%emt 0:0:0]} Nf6 {[%emt 0:0:24]} 4. 0-0 {[%emt 0:0:0]} Nxe4 {[%emt 0:0:2]} 5. Re1 {[%emt 0:0:1]} Nd6 {[%emt 0:0:2]} 6. Nxe5 {[%emt 0:0:2]} Be7 {[%emt 0:0:4]} 7. Bf1 {[%emt 0:0:2]} Nxe5 {[%emt 0:0:3]
} 8. Rxe5 {[%emt 0:0:2]} 0-0 {[%emt 0:0:3]} 9. Nc3 {[%emt 0:0:0]} Ne8 {[%emt 0:0:4]} 10. Nd5 {[%emt 0:0:1]} Bd6 {[%emt 0:0:1]} 11. Re1 {[%emt 0:0:3]} c6 {[%emt 0:0:2]} 12. Ne3 {[%emt 0:0:3]} Be7 {[%emt 0:0:0]} 13. Qe2 {[%emt 0:0:46]} Nc7 {[%emt 0:1:32]} 14. Nf5 {[%emt 0:0:27]} Bf6 {[%emt 0:0:1]} 15. Nd6 {[%emt 0:0:54]} Ne6 {[%emt 0:0:6]} 16. c3 {[%emt 0:0:53]
} Qc7 {[%emt 0:0:10]} 17. Nxc8 {[%emt 0:0:10]} Raxc8 {[%emt 0:0:0]} 18. d4 {[%emt 0:0:22]} d5 {[%emt 0:0:10]} 19. Qg4 {[%emt 0:1:41]} g6 {[%emt 0:2:0]} 20. Bd3 {[%emt 0:1:14]} Rce8 {[%emt 0:0:25]} 21. Bd2 {[%emt 0:0:55]
} h5 {[%emt 0:3:48]} 22. Qf3 {[%emt 0:4:23]} Bg5 {[%emt 0:0:0]} 23. Bxg5 {[%emt 0:0:38]} Nxg5 {[%emt 0:0:1]} 24. Qf6 {[%emt 0:0:11]} Nh7 {[%emt 0:1:22]} 25. Qf3 {[%emt 0:0:18]} Kg7 {[%emt 0:0:17]} 26. Re3 {[%emt 0:1:27]
} Nf6 {[%emt 0:0:14]} 27. h3 {[%emt 0:0:45]} Rxe3 {[%emt 0:0:0]} 28. Qxe3 {[%emt 0:0:1]} Re8 {[%emt 0:0:2]} 29. Qd2 {[%emt 0:0:15]} Qe7 {[%emt 0:1:1]} 30. Kf1 {[%emt 0:0:28]} Qc7 {[%emt 0:0:11]} 31. Kg1 {[%emt 0:0:4]
} Qb6 {[%emt 0:1:19]} 32. Kf1 {[%emt 0:0:6]} Ne4 {[%emt 0:0:0]} 33. Bxe4 {[%emt 0:0:46]} Rxe4 {[%emt 0:0:1]} 34. f3 {[%emt 0:0:11]} Re6 {[%emt 0:0:16]} 35. b3 {[%emt 0:0:37]} Qa6+ {[%emt 0:2:23]} 1/2-1/2

[Event "FIDE World Rapid-ch Open 2018"]
[White "Novikov, Stanislav"]
[Black "Usmanov, Vasily"]
[Site "St. Petersburg"]
[Round "12.67"]
[Annotator "ChessBase"]
[Result "1-0"]
[Date "2018.12.28"]
[WhiteElo "2540"]
[BlackElo "2450"]
[PlyCount "107"]
[TimeControl "900+10"]

1. e4 {[%emt 0:0:0]} d5 {[%emt 0:0:0]} 2. exd5 {[%emt 0:0:0]} Qxd5 {[%emt 0:0:0]
} 3. Nc3 {[%emt 0:0:0]} Qd8 {[%emt 0:0:0]} 4. d4 {[%emt 0:0:0]} c6 {[%emt 0:0:0]} 5. Ne4 {[%emt 0:1:8]} Bf5 {[%emt 0:0:0]} 6. Ng3 {[%emt 0:0:4]
} Bg6 {[%emt 0:0:0]} 7. h4 {[%emt 0:0:26]} h6 {[%emt 0:0:0]} 8. Nf3 {[%emt 0:0:1]} e6 {[%emt 0:0:12]} 9. h5 {[%emt 0:0:5]} Bh7 {[%emt 0:0:2]
} 10. Bd3 {[%emt 0:0:1]} Bxd3 {[%emt 0:0:13]} 11. Qxd3 {[%emt 0:0:1]
} Nf6 {[%emt 0:0:6]} 12. Bf4 {[%emt 0:0:8]} c5 {[%emt 0:0:0]} 13. 0-0-0 {[%emt 0:0:43]} Nc6 {[%emt 0:0:6]} 14. Ne4 {[%emt 0:1:2]} cxd4 {[%emt 0:1:46]} 15. Nxd4 {[%emt 0:0:7]} Nxd4 {[%emt 0:0:22]} 16. Qxd4 {[%emt 0:2:45]} Qxd4 {[%emt 0:0:4]} 17. Rxd4 {[%emt 0:0:1]} Nxe4 {[%emt 0:0:0]} 18. Rxe4 {[%emt 0:0:1]} Bc5 {[%emt 0:0:27]} 19. f3 {[%emt 0:1:50]} Rd8 {[%emt 0:0:40]} 20. b4 {[%emt 0:0:38]} Bd4 {[%emt 0:0:58]} 21. c4 {[%emt 0:0:8]
} Ke7 {[%emt 0:0:31]} 22. Kc2 {[%emt 0:0:6]} Rd7 {[%emt 0:0:0]} 23. Rd1 {[%emt 0:0:17]} Bf6 {[%emt 0:0:24]} 24. Rxd7+ {[%emt 0:0:33]} Kxd7 {[%emt 0:0:2]} 25. Be3 {[%emt 0:1:31]} a6 {[%emt 0:0:3]} 26. Bd4 {[%emt 0:1:40]
} Bxd4 {[%emt 0:1:27]} 27. Rxd4+ {[%emt 0:0:1]} Ke7 {[%emt 0:0:0]} 28. c5 {[%emt 0:0:19]} Rd8 {[%emt 0:2:52]} 29. Rxd8 {[%emt 0:0:17]} Kxd8 {[%emt 0:0:1]} 30. Kd3 {[%emt 0:0:1]} Kd7 {[%emt 0:0:1]} 31. Kc4 {[%emt 0:1:9]
} Kc6 {[%emt 0:0:10]} 32. a4 {[%emt 0:0:20]} Kc7 {[%emt 0:0:0]} 33. b5 {[%emt 0:2:24]} a5 {[%emt 0:0:1]} 34. f4 {[%emt 0:0:22]} f6 {[%emt 0:1:13]
} 35. Kd4 {[%emt 0:0:15]} Kd7 {[%emt 0:0:6]} 36. g4 {[%emt 0:0:0]} Kc7 {[%emt 0:0:12]} 37. Ke4 {[%emt 0:0:13]} Kd7 {[%emt 0:0:9]} 38. Kf3 {[%emt 0:0:2]} Kc7 {[%emt 0:0:7]} 39. g5 {[%emt 0:0:10]} Kd7 {[%emt 0:0:0]} 40. g6 {[%emt 0:0:1]} Kc7 {[%emt 0:0:5]} 41. Ke3 {[%emt 0:0:18]} Kd7 {[%emt 0:0:21]} 42. Ke4 {[%emt 0:0:1]} Kc7 {[%emt 0:1:3]} 43. f5 {[%emt 0:0:3]
} Kd7 {[%emt 0:2:26]} 44. Kf4 {[%emt 0:1:4]} Ke7 {[%emt 0:0:0]} 45. fxe6 {[%emt 0:0:4]} Kxe6 {[%emt 0:0:6]} 46. Ke4 {[%emt 0:0:1]} Ke7 {[%emt 0:0:16]} 47. Kd5 {[%emt 0:0:3]} Kd7 {[%emt 0:0:1]} 48. b6 {[%emt 0:0:44]
} f5 {[%emt 0:0:21]} 49. Ke5 {[%emt 0:0:9]} Kc6 {[%emt 0:0:0]} 50. Kxf5 {[%emt 0:0:2]} Kd5 {[%emt 0:0:2]} 51. c6 {[%emt 0:0:6]} Kxc6 {[%emt 0:0:3]} 52. Ke6 {[%emt 0:0:1]} Kxb6 {[%emt 0:0:1]} 53. Kf7 {[%emt 0:0:2]
} Kc5 {[%emt 0:0:7]} 54. Kxg7 {[%emt 0:0:1]} 1-0

[Event "FIDE World Rapid-ch Open 2018"]
[White "Kabanov, Nikolai"]
[Black "Bindrich, Falko"]
[Site "St. Petersburg"]
[Round "12.68"]
[Annotator "ChessBase"]
[Result "1/2-1/2"]
[Date "2018.12.28"]
[WhiteElo "2450"]
[BlackElo "2606"]
[PlyCount "113"]
[TimeControl "900+10"]

1. e4 {[%emt 0:0:0]} e5 {[%emt 0:0:0]} 2. Nf3 {[%emt 0:0:0]} Nf6 {[%emt 0:0:0]
} 3. Nc3 {[%emt 0:0:0]} Nc6 {[%emt 0:0:0]} 4. Bc4 {[%emt 0:0:0]} Bc5 {[%emt 0:0:0]} 5. d3 {[%emt 0:0:14]} h6 {[%emt 0:0:0]} 6. Be3 {[%emt 0:0:17]} d6 {[%emt 0:0:3]} 7. h3 {[%emt 0:0:43]} Bb6 {[%emt 0:0:44]
} 8. Bxb6 {[%emt 0:1:8]} axb6 {[%emt 0:0:1]} 9. d4 {[%emt 0:0:3]} 0-0 {[%emt 0:0:23]
} 10. 0-0 {[%emt 0:0:12]} Bd7 {[%emt 0:0:9]} 11. Re1 {[%emt 0:0:0]} Re8 {[%emt 0:0:9]} 12. a3 {[%emt 0:0:19]} g6 {[%emt 0:1:33]} 13. Qd2 {[%emt 0:0:17]} Kg7 {[%emt 0:0:2]} 14. Rad1 {[%emt 0:0:8]} Qc8 {[%emt 0:0:34]
} 15. Bf1 {[%emt 0:0:7]} Rd8 {[%emt 0:0:43]} 16. Nd5 {[%emt 0:0:0]} Ng8 {[%emt 0:1:33]} 17. dxe5 {[%emt 0:1:57]} dxe5 {[%emt 0:0:24]} 18. Qc3 {[%emt 0:0:18]} f6 {[%emt 0:0:10]} 19. Rd2 {[%emt 0:0:34]} Be6 {[%emt 0:0:8]
} 20. Red1 {[%emt 0:1:41]} Bxd5 {[%emt 0:0:10]} 21. Rxd5 {[%emt 0:1:27]
} Rxd5 {[%emt 0:0:3]} 22. Rxd5 {[%emt 0:1:4]} Nge7 {[%emt 0:0:0]} 23. Rd1 {[%emt 0:0:21]} Qe8 {[%emt 0:0:3]} 24. Bb5 {[%emt 0:0:19]} Rd8 {[%emt 0:0:6]} 25. Rd3 {[%emt 0:0:52]} Rxd3 {[%emt 0:0:18]} 26. Qxd3 {[%emt 0:0:21]
} Qd8 {[%emt 0:0:12]} 27. Kf1 {[%emt 0:0:34]} Qxd3+ {[%emt 0:0:0]} 28. cxd3 {[%emt 0:0:17]} Na7 {[%emt 0:0:22]} 29. Bc4 {[%emt 0:0:19]} b5 {[%emt 0:0:16]} 30. Ba2 {[%emt 0:0:15]} c5 {[%emt 0:0:20]} 31. Ke2 {[%emt 0:0:16]
} Nac6 {[%emt 0:0:1]} 32. Kd2 {[%emt 0:0:12]} f5 {[%emt 0:0:0]} 33. g3 {[%emt 0:0:49]} Kf6 {[%emt 0:0:2]} 34. h4 {[%emt 0:0:23]} b6 {[%emt 0:0:23]
} 35. Ke3 {[%emt 0:0:51]} Nc8 {[%emt 0:0:12]} 36. Bd5 {[%emt 0:0:0]} N6e7 {[%emt 0:0:1]} 37. Ba2 {[%emt 0:0:19]} Nd6 {[%emt 0:0:2]} 38. Nd2 {[%emt 0:0:6]} Nc6 {[%emt 0:0:25]} 39. Bd5 {[%emt 0:0:8]} Nd4 {[%emt 0:0:6]
} 40. f4 {[%emt 0:0:5]} g5 {[%emt 0:1:5]} 41. hxg5+ {[%emt 0:0:0]} hxg5 {[%emt 0:0:2]} 42. Nf3 {[%emt 0:1:35]} exf4+ {[%emt 0:4:0]} 43. gxf4 {[%emt 0:0:2]} gxf4+ {[%emt 0:0:2]} 44. Kxf4 {[%emt 0:0:4]} Nxf3 {[%emt 0:0:4]} 45. Kxf3 {[%emt 0:0:5]} Ke5 {[%emt 0:0:4]} 46. Bc6 {[%emt 0:0:28]
} c4 {[%emt 0:1:3]} 47. exf5 {[%emt 0:1:9]} Nxf5 {[%emt 0:0:0]} 48. Bd7 {[%emt 0:0:2]} Nd6 {[%emt 0:1:34]} 49. Ke3 {[%emt 0:0:8]} Kd5 {[%emt 0:0:3]} 50. d4 {[%emt 0:0:26]} c3 {[%emt 0:1:53]} 51. bxc3 {[%emt 0:0:0]} Kc4 {[%emt 0:0:1]} 52. Kf4 {[%emt 0:0:35]} Kxc3 {[%emt 0:0:7]} 53. Ke5 {[%emt 0:0:4]} Nc4+ {[%emt 0:0:1]} 54. Kd5 {[%emt 0:0:2]} Nxa3 {[%emt 0:0:2]
} 55. Bxb5 {[%emt 0:0:6]} Nxb5 {[%emt 0:0:3]} 56. Kc6 {[%emt 0:0:1]
} Nxd4+ {[%emt 0:0:1]} 57. Kxb6 {[%emt 0:0:2]} 1/2-1/2